Cogmind - Beta 12 @@@ ROGUE MODE // 2023.10.05 @ 22:07:33 Player: monistgf Result: Destroyed by G-73 Enforcer with Phase Gun Performance ------------- Evolutions (8) 4000 Regions Visited (15) 3000 Robots Destroyed (310) 1550 Value Destroyed (15457) 15457 Prototype IDs (25) 500 Alien Tech Used (0) 0 Bonus (3045) 3045 TOTAL SCORE: 27552 Bonus ------- High Alert Combat Kills 1938 Follower Combat Kills 716 Network Hubs Disabled 400 Friendly Fire -9 Cogmind --------- Core Integrity 0/1450 Matter 243/300 Energy 190/190 System Corruption 29% Temperature Cool (9) Movement Flying (27) Location -2/Research Parts ------- > --- POWER (2) -------- Light Quantum Reactor > --- PROPULSION (4) --- Field Propulsion Array Improved Diametric Drive Improved Diametric Drive > --- UTILITY (13) ----- (None) > --- WEAPON (4) ------- (None) > --- INVENTORY (5) ---- Matter Compressor (250) Advanced Target Analyzer Long-range Tractor Beam Enhanced Nova Cannon Enhanced Force Lance Peak State ------------ > --- POWER ------------ Micro Antimatter Reactor Quantum-Antimatter Reactor > --- PROPULSION ------- Hovering Antigrav-Biometal Exoskeleton Improved Antigrav System > --- UTILITY ---------- Armored Scrap Engine Improved Cryofiber Web Advanced Heat Sink Large Storage Unit Long-range Sensor Array Advanced Signal Interpreter Advanced Targeting Computer Advanced Targeting Computer Improved Target Analyzer Advanced Target Analyzer Advanced Reaction Control System Graphene Brace > --- WEAPON ----------- Gamma Rifle Enhanced Quantum Rifle Enhanced Quantum Rifle Hpw. Thermal Dispersion Construct/G > --- INVENTORY -------- Advanced Heat Sink Advanced Heat Sink Improved Energy Well Matter Compressor Advanced Weight Redist. System Terrain Scanner Advanced Targeting Computer Advanced Target Analyzer Advanced Transmission Jammer Layered Heavy Armor Plating Experimental Shield Generator Long-range Tractor Beam Heavy Rocket Launcher Powered Hammer [Rating: 159] Favorites ----------- Power Constructs Engine Heavy Ion Engine Power Core Micro Nuclear Core Reactor Constructs Propulsion Constructs Treads Light Treads Leg Improved Aluminum Leg Wheel Armored Wheel Hover Unit Constructs Flight Unit Field Propulsion Array Utility Armored Scrap Engine Device Armored Scrap Engine Storage High-capacity Storage Unit Processor Advanced Targeting Computer Protection Centrium Medium Armor Plating Weapon Constructs Energy Gun Constructs Energy Cannon Constructs Ballistic Gun Constructs Ballistic Cannon Gauss Cannon Launcher Heavy Missile Launcher Impact Weapon Great Maul Slashing Weapon Phasing Sabre Build | -11 -10 -9 -9 -9 -7 -6 -6 -6 -6 -6 -5 -4 -3 -3 -2 ------- Run | Jun Mat Mat Sto Rec Fac Fac Ext Cet Arc Hub Fac Fac Res Tes Res Slots Evolved 16 | . . 2 . . 4 2 . . . . 2 2 2 . 2 Power 1 | . . . . . . . . . . . . . . . 1 Propulsion 2 | . . 1 . . 1 . . . . . . . . . . Utility 11 | . . . . . 3 2 . . . . 2 2 2 . . Weapon 2 | . . 1 . . . . . . . . . . . . 1 Parts Attached 283 | . 14 3 23 10 18 46 16 5 2 4 5 5 32 15 85 Power 10 | . 1 . 2 1 . . 1 . . . . . 2 . 3 Engine 4 | . . . 2 . . . 1 . . . . . . . 1 Core 2 | . 1 . . 1 . . . . . . . . . . . Reactor 4 | . . . . . . . . . . . . . 2 . 2 Propulsion 38 | . 8 1 5 4 9 . . . . . . . 1 3 7 Treads 3 | . . . 2 . . . . . . . . . . . 1 Leg 23 | . 6 1 1 2 8 . . . . . . . 1 3 1 Wheel 4 | . 2 . 1 1 . . . . . . . . . . . Hover 3 | . . . . 1 1 . . . . . . . . . 1 Flight 5 | . . . 1 . . . . . . . . . . . 4 Utility 156 | . 2 . 3 1 7 25 8 4 2 4 5 5 25 10 55 Device 115 | . 1 . 1 1 2 20 7 3 2 2 2 4 21 8 41 Storage 13 | . . . 2 . 1 . 1 . . . . . . 1 8 Processor 14 | . . . . . 2 1 . . . 1 2 1 2 . 5 Hackware . | . . . . . . . . . . . . . . . . Protection 14 | . 1 . . . 2 4 . 1 . 1 1 . 2 1 1 Artifact . | . . . . . . . . . . . . . . . . Weapon 79 | . 3 2 13 4 2 21 7 1 . . . . 4 2 20 Energy Gun 14 | . 2 . 4 . . . . . . . . . 1 . 7 Energy Cannon 12 | . 1 2 4 . . 1 3 . . . . . . . 1 Ballistic Gun 22 | . . . 4 4 1 9 . . . . . . 2 . 2 Ballistic Cannon 2 | . . . . . 1 1 . . . . . . . . . Launcher 5 | . . . 1 . . 1 . 1 . . . . . . 2 Special Weapon . | . . . . . . . . . . . . . . . . Impact Weapon 13 | . . . . . . 9 . . . . . . . . 4 Slashing Weapon 11 | . . . . . . . 4 . . . . . 1 2 4 Piercing Weapon . | . . . . . . . . . . . . . . . . Special Melee Weapon . | . . . . . . . . . . . . . . . . Unidentified Prototypes 10 | . . 1 3 . 1 . . . . . . . 1 2 2 Parts Lost 85 | . 4 . 4 5 2 6 3 1 . 4 2 . 20 2 32 Power 12 | . 1 . . 1 . 2 1 . . . . . 3 . 4 Propulsion 11 | . 1 . 2 2 1 . . . . . . . 2 . 3 Utility 33 | . 1 . . . . 1 1 . . 3 2 . 11 1 13 Weapon 29 | . 1 . 2 2 1 3 1 1 . 1 . . 4 1 12 Highest Loss Streak 19 | . 2 . 2 3 1 3 1 1 . 2 2 . 8 2 19 To Critical Strikes . | . . . . . . . . . . . . . . . . Average Slot Usage (%) 73 | . 93 100 99 78 75 66 65 67 66 63 69 73 70 74 68 Engine 1 | . 7 . 10 1 3 . . . . . . . . . . Core 3 | . 6 11 . 8 3 4 5 1 2 6 5 1 . . . Reactor 1 | . . . . . . . . 4 3 . . 3 3 4 3 Treads 2 | . . . 6 . 2 . 2 6 6 6 5 5 . . 1 Leg 8 | . 19 33 25 28 14 5 1 . . . . . 2 4 1 Wheel 1 | . 8 . 1 2 3 . . . . . . . . . . Device 17 | . 6 11 11 11 8 19 19 19 20 14 16 21 27 26 23 Storage 5 | . 14 11 11 . 7 6 6 6 6 6 5 5 4 4 4 Processor 11 | . . . . . 6 13 13 13 13 9 17 21 18 14 17 Protection 2 | . . . . . 5 . . . . 4 5 5 4 4 1 Energy Gun 2 | . 17 2 5 . . . . . 1 6 9 5 1 4 2 Energy Cannon 4 | . . 30 14 8 4 5 7 4 . . . . 2 . 2 Ballistic Gun 4 | . 10 . 12 16 5 2 . . 2 . 1 . . 1 3 Ballistic Cannon 1 | . . . . 1 4 . 1 8 8 5 . 4 . 1 . Naked Turns 19 | . . . . . . . . . . . . . . . 19 Heaviest Build 112 | 12 18 23 29 19 78 73 77 84 76 91 80 84 92 94 112 Greatest Support 169 | 20 32 39 39 41 41 65 119 94 94 133 133 168 169 119 127 Greatest Overweight (x) 5 | . 4 . 2 1 5 2 2 . . . . . 2 1 1 Average Overweight (x) . | . . . . . 2 1 . . . . . . . . . Largest Inventory Capacity 20 | . 8 8 10 5 20 20 20 20 20 20 20 20 20 20 20 Average Capacity 17 | . 8 8 9 5 20 20 20 20 20 20 20 20 20 20 17 Most Carried 20 | . 8 8 10 5 20 20 20 20 20 20 19 20 20 18 20 Average Carried 15 | . 6 7 8 4 13 19 19 19 19 19 18 18 18 15 16 Final Capacity 20 | 8 8 8 10 5 20 20 20 20 20 20 20 20 20 20 5 Final Carried 20 | 6 8 8 10 5 20 19 20 19 19 18 19 19 14 17 5 Scrap Engine Consumption 311 | . . . . 24 36 48 40 7 7 9 17 8 37 20 58 Constructs Created 21 | . . . . 2 1 4 2 1 . . . . 2 3 6 Constructs Modified 99 | . . . . 4 14 13 13 2 5 5 5 5 9 10 14 Class Distribution -------------------- 48% | Construct 12% | Mutant 11% | Gunner 8% | Commander-Gunner 6% | Commander-Construct 4% | Scavenger-Mutant 3% | Scavenger-Gunner Dominant Class ---------------- Mutant | -10/Materials Gunner | -9/Materials Gunner | -9/Storage Commander-Mutant | -9/Recycling Commander-Gunner | -7/Factory Construct | -6/Factory Construct | -6/Extension Construct | -6/Cetus Construct | -6/Archives Construct | -6/Hub_04(d) Construct | -5/Factory Construct | -4/Factory Construct | -3/Research Mutant | -3/Testing Mutant | -2/Research Resources | -11 -10 -9 -9 -9 -7 -6 -6 -6 -6 -6 -5 -4 -3 -3 -2 ----------- Run | Jun Mat Mat Sto Rec Fac Fac Ext Cet Arc Hub Fac Fac Res Tes Res Matter Collected 6565 | 193 144 54 305 261 473 1091 344 277 170 266 553 233 522 161 1518 Remotely 20 | . . . . . . . . . . . . . . 10 10 Salvage Created 16618 | . 433 54 983 463 1103 2540 1001 438 273 752 923 842 1993 805 4015 Parts 637 | . 16 2 50 17 49 80 31 21 8 46 19 36 91 18 153 Haulers Intercepted 13 | . . 1 3 . 2 . 1 . . 1 1 . 1 1 2 Recyclers Shooed 13 | . . . 1 3 3 1 . . . 1 . 1 2 1 . Parts Field Recycled . | . . . . . . . . . . . . . . . . Retrieved Matter . | . . . . . . . . . . . . . . . . Parts Self-Destructed . | . . . . . . . . . . . . . . . . Prevented . | . . . . . . . . . . . . . . . . Kills | -11 -10 -9 -9 -9 -7 -6 -6 -6 -6 -6 -5 -4 -3 -3 -2 ------- Run | Jun Mat Mat Sto Rec Fac Fac Ext Cet Arc Hub Fac Fac Res Tes Res Combat Hostiles Destroyed 242 | . 10 . 20 9 15 34 10 14 4 11 13 12 30 5 55 Melee 2 | . . . . . . . 1 . . . . . 1 . . Guns 71 | . 10 . 6 4 2 3 . . . 2 11 1 11 3 18 Cannons 98 | . . . 10 5 13 16 8 6 2 7 . 9 18 . 4 AOE 20 | . . . 3 . . 10 1 2 . . . . . . 4 Classes Destroyed 18 | . 1 1 4 4 3 1 1 . . 1 1 . . . 1 Worker 11 | . . . 1 . 2 1 . . . 4 . 1 1 . 1 Builder 7 | . . . . . 1 . 1 . . 2 . . . . 3 Tunneler 1 | . . . . . . . . . . 1 . . . . . Hauler 13 | . . 1 3 . 2 . 1 . . 1 1 . 1 1 2 Recycler 18 | . . . . 1 3 7 2 . . . 1 . 2 2 . Mechanic 3 | . . . . . . 2 . . . . . 1 . . . Operator 5 | . . . 2 . 1 . . . . . . 1 . 1 . Watcher 10 | . . . . . 1 1 . . . 1 1 1 . 1 4 Swarmer 34 | . . . 6 2 . 6 . 7 . . . . 8 . 5 Cutter 3 | . . . . . . . . . . . . . . . 3 Saboteur 2 | . . . . . . . . . . . 1 . . . 1 Grunt 89 | . 10 . 5 1 7 9 6 3 . 4 8 6 10 3 17 Brawler 8 | . . . . 1 . 3 . . . . 1 . . . 3 Duelist 6 | . . . . . 1 2 . . . . 1 1 1 . . Sentry 29 | . . . 9 2 1 5 . . 4 2 . 1 1 . 4 Hunter 28 | . . . . 2 2 5 . . . 3 . 2 4 2 8 Programmer 35 | . . . . 1 4 4 1 . . 2 2 2 5 . 14 Behemoth 3 | . . . . . . . 2 . . . . . 1 . . Cetus Guard 4 | . . . . . . . . 4 . . . . . . . Savage 1 | . . . . . . . 1 . . . . . . . . Best Kill Streak 10 | . 2 1 7 4 5 8 7 10 1 8 6 5 7 4 10 Combat Bots Only 10 | . 2 . 7 4 4 7 4 10 1 2 5 4 6 2 8 Max Kills in Single Turn 7 | . 1 1 3 1 4 5 4 2 1 7 2 2 1 1 5 Gunslinging . | . . . . . . . . . . . . . . . . Exploded 4 | . . . 3 . . 3 1 2 . . . . . . 4 Melee 1 | . . . . . . . 1 . . . . . 1 . . Uniques/NPCs Destroyed . | . . . . . . . . . . . . . . . . Combat | -11 -10 -9 -9 -9 -7 -6 -6 -6 -6 -6 -5 -4 -3 -3 -2 -------- Run | Jun Mat Mat Sto Rec Fac Fac Ext Cet Arc Hub Fac Fac Res Tes Res Damage Taken 26511 | . 761 . 961 984 777 2597 1366 887 370 1150 920 896 5975 494 8373 Core 3146 | . 118 . 142 99 48 178 194 62 93 144 35 60 423 82 1468 Absorbed by Shields 780 | . . . 10 43 134 . . . . . . . 161 . 432 Reduced by Siege Mode 162 | . . . . . . . . . . . 55 49 58 . . Redirected to Shielding 38 | . . . . . . . . . . . . . . . 38 Regen/Repaired (Parts) 6819 | . . . . 58 195 794 652 74 231 597 282 491 1186 197 2062 Core Remaining (%) 69 | 100 52 . . 39 93 . . . . 21 96 94 . 61 . Volleys Fired 698 | . 46 1 62 30 53 98 43 26 15 34 34 29 97 25 105 Largest 4 | . 2 3 3 3 2 2 2 2 2 2 2 2 2 3 4 Hottest 268 | . 105 177 192 114 205 164 229 223 112 166 129 191 193 259 268 Shots Fired 1311 | . 81 3 150 81 98 170 63 50 30 66 66 54 130 54 215 Gun 716 | . 81 1 73 54 33 69 . . . 35 66 25 73 51 155 Cannon 582 | . . 2 76 27 65 95 63 48 30 31 . 29 57 3 56 Launcher 13 | . . . 1 . . 6 . 2 . . . . . . 4 Special . | . . . . . . . . . . . . . . . . Kinetic 376 | . 42 . 28 57 60 85 . 12 15 28 2 . 33 8 6 Thermal 830 | . 39 1 105 24 30 48 50 36 15 38 64 54 97 27 202 Explosive 13 | . . . 1 . . 6 . 2 . . . . . . 4 Electromagnetic 92 | . . 2 16 . 8 31 13 . . . . . . 19 3 Robot Hit Streak 34 | . 13 1 16 19 12 13 11 25 8 11 32 34 27 18 18 Robot Miss Streak 5 | . 3 . 4 2 3 2 1 4 2 5 3 2 4 3 3 Penetration Max 1 | . . . . . 1 . . . 1 1 . . . 1 1 Secondary Targets 6 | . 2 . . . . . . . . . 2 . . 1 1 Max Gunslinging Chain 1 | . 1 . . . . . . . . . 1 . . 1 1 Shots Hit Robots 917 | . 55 1 98 58 68 116 55 29 18 48 54 43 106 36 132 Core Hits 442 | . 24 1 36 14 34 65 20 14 7 37 35 24 44 15 72 Critical Kills 79 | . . . . . . 1 . 5 3 3 7 5 11 5 39 Critical Parts Destroyed 36 | . . . . . . . . . . 4 6 7 13 2 4 Critical Strikes 138 | . . . 4 . 2 2 3 5 3 7 18 12 28 10 44 Burn 12 | . . . 4 . . . 3 . . . 5 . . . . Meltdown 42 | . . . . . . 1 . 5 2 1 . . . 2 31 Destroy 77 | . . . . . . . . . 1 6 13 12 28 5 12 Blast 3 | . . . . . 2 1 . . . . . . . . . Corrupt 4 | . . . . . . . . . . . . . . 3 1 Melee Attacks 59 | . . . . . . 27 4 . . . . . 3 6 19 Impact 38 | . . . . . . 27 . . . . . . . . 11 Slashing 21 | . . . . . . . 4 . . . . . 3 6 8 Piercing . | . . . . . . . . . . . . . . . . Sneak Attacks 1 | . . . . . . . 1 . . . . . . . . Combat Hostiles . | . . . . . . . . . . . . . . . . Follow-up Attacks . | . . . . . . . . . . . . . . . . Damage Inflicted 34511 | . 603 16 2144 996 2727 5966 2771 1273 437 2135 1387 2218 5066 1070 5702 Guns 11382 | . 603 16 778 523 452 822 . . . 432 1387 377 1370 1005 3617 Cannons 18676 | . . . 1193 451 1992 3330 2382 1061 437 991 . 1841 3568 65 1365 Explosions 4115 | . . . 160 . 253 1781 280 212 . 709 . . . . 720 Melee 235 | . . . . . . . 109 . . . . . 126 . . Ramming 103 | . . . 13 22 30 33 . . . 3 . . 2 . . Kinetic 5144 | . 203 . 267 577 1073 1028 . 83 209 932 62 . 506 131 73 Thermal 23531 | . 400 16 1413 397 1482 2455 2326 978 228 491 1325 2218 4432 532 4838 Explosive 2052 | . . . 160 . . 960 . 212 . . . . . . 720 Electromagnetic 3446 | . . . 291 . 142 1490 336 . . 709 . . . 407 71 Impact . | . . . . . . . . . . . . . . . . Slashing 235 | . . . . . . . 109 . . . . . 126 . . Piercing . | . . . . . . . . . . . . . . . . Highest Corruption 29 | . . . . . 5 . . . . 1 10 1 4 3 29 Average Corruption 4 | . . . . . 1 . . . . 1 8 1 2 2 9 Corruption Purged 9 | . . . . . . . . . . . . . 5 3 1 Corruption Blocked . | . . . . . . . . . . . . . . . . Effects 86 | . . . . . 13 . . . . 2 13 . 14 1 43 Message Errors 24 | . . . . . 6 . . . . . 3 . 5 . 10 Matter Fused 17 | . . . . . 3 . . . . 1 1 . 2 . 10 Heat Flow Errors 12 | . . . . . 2 . . . . . 3 . 1 . 6 Energy Discharges 11 | . . . . . 1 . . . . . 1 . 3 . 6 Parts Rejected 1 | . . . . . . . . . . . . . . . 1 Parts Fused 2 | . . . . . . . . . . . 1 . . . 1 Data Loss (minor) 3 | . . . . . . . . . . . 2 . . . 1 Data Loss (major) 4 | . . . . . . . . . . 1 . . . 1 2 Misfires 1 | . . . . . . . . . . . . . . . 1 Alerts 3 | . . . . . . . . . . . . . 2 . 1 Weapon Failures 8 | . . . . . 1 . . . . . 2 . 1 . 4 Overload Shots . | . . . . . . . . . . . . . . . . Overflow Damage 1169 | . . . . 9 124 471 255 35 . 45 . 13 128 . 89 Projectiles 892 | . . . . 9 124 295 238 2 . 3 . 13 128 . 80 Explosions 277 | . . . . . . 176 17 33 . 42 . . . . 9 Melee . | . . . . . . . . . . . . . . . . Knockbacks 12 | . . . . . 5 . . 1 . 5 . . 1 . . Impact 1 | . . . . . . . . . . . . . 1 . . Kinetic 11 | . . . . . 5 . . 1 . 5 . . . . . Secondary . | . . . . . . . . . . . . . . . . Self-Inflicted Damage 481 | . . . 18 5 13 169 62 . . 170 . . . . 44 Shots 8 | . . . 1 . . 3 1 . . 2 . . . . 1 Rammed 8 | . . . . 4 2 1 . . . 1 . . . . . Targets Rammed 18 | . . . 2 10 3 1 . . . 1 . . 1 . . Kicked 10 | . . . 2 6 1 . . . . . . . 1 . . Crushed . | . . . . . . . . . . . . . . . . Highest Temperature 375 | . 278 72 306 279 326 252 340 375 . 324 249 206 318 81 131 Average Temperature 108 | . 92 38 96 98 128 65 121 217 . 138 156 105 117 45 64 Received Heat Transfer 3762 | . 474 . 326 120 172 411 397 135 54 51 184 267 514 75 582 Effects 10 | . 1 . . 3 1 3 1 1 . . . . . . . Energy Bleed 3 | . 1 . . . 1 . . 1 . . . . . . . Interference 6 | . . . . 3 . 3 . . . . . . . . . Damage (minor) 1 | . . . . . . . 1 . . . . . . . . Siege Activations 9 | . . . . . . . . . . . 3 5 1 . . Total Turns 139 | . . . . . . . . . . . 58 43 38 . . Longest Duration 38 | . . . . . . . . . . . 26 18 38 . . Robots Corrupted 7 | . . . . . 1 4 . . . 1 . . . 1 . Combat Hostiles 4 | . . . . . . 4 . . . . . . . . . Parts Fried 15 | . . . . . 2 11 1 . . . . . . 1 . Impact Corruptions . | . . . . . . . . . . . . . . . . Robots Melted 50 | . . . 1 . . 2 . 6 2 2 2 2 . 2 31 Combat Hostiles 47 | . . . 1 . . 1 . 6 2 2 2 2 . 2 29 Parts Melted 121 | . . . 10 . 2 4 4 6 3 1 15 5 1 3 67 Heat Transferred 27692 | . 942 37 3034 703 890 2020 2650 1250 400 966 3786 2650 3172 703 4489 Parts Sabotaged 2 | . . . . . . . . . . . . . . . 2 Parts Stolen . | . . . . . . . . . . . . . . . . Parts Stripped . | . . . . . . . . . . . . . . . . Power Chain Reactions 2 | . . . 1 . . . 1 . . . . . . . . Missiles Intercepted . | . . . . . . . . . . . . . . . . Alert | -11 -10 -9 -9 -9 -7 -6 -6 -6 -6 -6 -5 -4 -3 -3 -2 ------- Run | Jun Mat Mat Sto Rec Fac Fac Ext Cet Arc Hub Fac Fac Res Tes Res Peak Influence 1269 | . 240 31 431 252 372 893 735 601 400 828 559 477 320 364 1269 Initial 437 | . . 16 13 63 . 177 437 336 240 140 405 271 . 180 139 Average 315 | . 109 25 210 116 102 391 519 417 372 294 480 301 135 277 657 Maximum Alert Level 4 | . 1 . 2 1 1 3 3 2 2 3 2 2 1 1 4 Low Security (%) 34 | . 73 100 37 76 72 21 . . . 32 . 16 74 3 8 Level 1 37 | . 26 . 59 23 27 51 9 64 33 57 4 66 25 96 23 Level 2 18 | . . . 2 . . 12 87 35 66 . 95 16 . . 23 Level 3 6 | . . . . . . 14 3 . . 9 . . . . 23 Level 4 2 | . . . . . . . . . . . . . . . 21 Level 5 . | . . . . . . . . . . . . . . . . High Security . | . . . . . . . . . . . . . . . . Max Security . | . . . . . . . . . . . . . . . . Squads Dispatched 51 | . 2 . 1 . 6 13 2 1 . 3 2 2 2 1 16 Investigation 6 | . . . . . 1 1 . 1 . 1 . 1 . . 1 Extermination 18 | . . . . . 4 4 . . . 1 . 1 2 1 5 Reinforcement 14 | . 2 . 1 . 1 3 1 . . 1 1 . . . 4 Assault 10 | . . . . . . 4 1 . . . 1 . . . 4 Garrison 3 | . . . . . . 1 . . . . . . . . 2 Intercept . | . . . . . . . . . . . . . . . . Searches Triggered . | . . . . . . . . . . . . . . . . Construction Impeded 2 | . . . 1 . . . . . . . . . . . 1 Haulers Reinforced 1 | . . . . . . 1 . . . . . . . . . Active Scanning Responses . | . . . . . . . . . . . . . . . . Cargo Convoy Interrupts . | . . . . . . . . . . . . . . . . Stealth | -11 -10 -9 -9 -9 -7 -6 -6 -6 -6 -6 -5 -4 -3 -3 -2 --------- Run | Jun Mat Mat Sto Rec Fac Fac Ext Cet Arc Hub Fac Fac Res Tes Res Distress Signals 26 | . 1 . 4 . . 5 3 1 . 4 . . 2 1 5 Communications Jammed 12 | . . . . . . 12 . . . . . . . . . Distress Signals 12 | . . . . . . 12 . . . . . . . . . Times Spotted 389 | . 15 . 34 14 18 55 30 15 4 16 16 14 45 11 102 Peak Tracking Total 12 | . 5 . 8 6 4 8 6 7 1 5 5 5 8 3 12 Tactical Retreats 29 | . 1 . 3 1 1 5 2 . . 2 1 . 1 1 11 Traps | -11 -10 -9 -9 -9 -7 -6 -6 -6 -6 -6 -5 -4 -3 -3 -2 ------- Run | Jun Mat Mat Sto Rec Fac Fac Ext Cet Arc Hub Fac Fac Res Tes Res Traps Triggered 19 | . . . 3 . 1 4 2 . . . . 1 5 . 3 Indirectly . | . . . . . . . . . . . . . . . . Trap Hack Attempts . | . . . . . . . . . . . . . . . . Triggered . | . . . . . . . . . . . . . . . . Disarmed . | . . . . . . . . . . . . . . . . Reprogrammed . | . . . . . . . . . . . . . . . . Reused . | . . . . . . . . . . . . . . . . Traps Extracted . | . . . . . . . . . . . . . . . . Installed . | . . . . . . . . . . . . . . . . Triggered . | . . . . . . . . . . . . . . . . Machines | -11 -10 -9 -9 -9 -7 -6 -6 -6 -6 -6 -5 -4 -3 -3 -2 ---------- Run | Jun Mat Mat Sto Rec Fac Fac Ext Cet Arc Hub Fac Fac Res Tes Res Machines Disabled 55 | . . . 3 . 5 10 2 5 3 21 . . 1 4 1 Max in Single Turn 19 | . . . 1 . 4 4 2 3 1 19 . . 1 1 1 Garrison Access 3 | . . . . . 1 2 . . . . . . . . . Network Hub 2 | . . . . . . . . . . 2 . . . . . Energy Cycler 1 | . . . . . . . 1 . . . . . . . . Machines Repaired . | . . . . . . . . . . . . . . . . Machines Sabotaged . | . . . . . . . . . . . . . . . . Overloaded Fab Kills . | . . . . . . . . . . . . . . . . Hacking | -11 -10 -9 -9 -9 -7 -6 -6 -6 -6 -6 -5 -4 -3 -3 -2 --------- Run | Jun Mat Mat Sto Rec Fac Fac Ext Cet Arc Hub Fac Fac Res Tes Res Machines Accessed 51 | . . 3 5 1 5 10 7 1 . 3 1 4 5 2 4 Terminals 43 | . . 3 5 1 3 8 7 1 . 3 . 4 4 2 2 Fabricators . | . . . . . . . . . . . . . . . . Repair Stations . | . . . . . . . . . . . . . . . . Recycling Units . | . . . . . . . . . . . . . . . . Scanalyzers . | . . . . . . . . . . . . . . . . Garrison Access 8 | . . . . . 2 2 . . . . 1 . 1 . 2 Total Hacks 142 | . . 8 13 1 8 19 20 2 . 7 7 20 18 4 15 Successful 43 | . . 3 5 . 2 5 10 . . 1 . 8 6 . 3 Failed 99 | . . 5 8 1 6 14 10 2 . 6 7 12 12 4 12 Catastrophic 27 | . . 1 . 1 3 2 4 . . 2 1 2 4 3 4 Database Lockouts . | . . . . . . . . . . . . . . . . Manual 61 | . . 4 8 1 3 7 10 . . 6 . 4 10 4 4 Terminals 120 | . . 8 13 1 4 15 20 2 . 7 . 20 16 4 10 Fabricators . | . . . . . . . . . . . . . . . . Repair Stations . | . . . . . . . . . . . . . . . . Recycling Units . | . . . . . . . . . . . . . . . . Scanalyzers . | . . . . . . . . . . . . . . . . Garrison Access 22 | . . . . . 4 4 . . . . 7 . 2 . 5 Terminal Hacks 27 | . . 2 4 . . 3 6 . . . . 6 4 . 2 Robot Analysis 1 | . . . . . . . . . . . . 1 . . . Prototype ID Bank 4 | . . 1 . . . . 1 . . . . 1 1 . . Open Door 3 | . . . . . . 1 2 . . . . . . . . Branch Access Points 3 | . . 1 1 . . . . . . . . . 1 . . Alert Level 4 | . . . . . . 2 . . . . . 1 1 . . Unreport Threat 5 | . . . 1 . . . 1 . . . . 2 . . 1 Registered Components 2 | . . . 1 . . . 1 . . . . . . . . Zone Layout 5 | . . . 1 . . . 1 . . . . 1 1 . 1 Fabricator Hacks . | . . . . . . . . . . . . . . . . Repair Station Hacks . | . . . . . . . . . . . . . . . . Recycling Unit Hacks . | . . . . . . . . . . . . . . . . Scanalyzer . | . . . . . . . . . . . . . . . . Garrison Access Hacks 2 | . . . . . 1 1 . . . . . . . . . Seal Access 2 | . . . . . 1 1 . . . . . . . . . Unauthorized Hacks 14 | . . 1 1 . 1 1 4 . . 1 . 2 2 . 1 Terminals 14 | . . 1 1 . 1 1 4 . . 1 . 2 2 . 1 Track 3 | . . . . . . . 1 . . . . 1 1 . . Botnet 10 | . . 1 1 . 1 1 2 . . 1 . 1 1 . 1 Disrupt 1 | . . . . . . . 1 . . . . . . . . Fabricators . | . . . . . . . . . . . . . . . . Repair Stations . | . . . . . . . . . . . . . . . . Recycling Units . | . . . . . . . . . . . . . . . . Scanalyzers . | . . . . . . . . . . . . . . . . Garrison Access . | . . . . . . . . . . . . . . . . Data Cores Recovered 3 | . . . 2 . . . . . . . . 1 . . . Used 2 | . . . 2 . . . . . . . . . . . . Hacking Detections 47 | . . 3 6 . 5 8 6 1 . 3 1 3 5 2 4 Full Trace Events 4 | . . . . . 1 1 . 1 . 1 . . . . . Feedback Events . | . . . . . . . . . . . . . . . . Feedback Blocked . | . . . . . . . . . . . . . . . . Robot Schematics Acquired . | . . . . . . . . . . . . . . . . Robots Built . | . . . . . . . . . . . . . . . . Authchips . | . . . . . . . . . . . . . . . . Time . | . . . . . . . . . . . . . . . . Total Robot Build Rating . | . . . . . . . . . . . . . . . . Part Schematics Acquired . | . . . . . . . . . . . . . . . . Parts Built . | . . . . . . . . . . . . . . . . Authchips . | . . . . . . . . . . . . . . . . Time . | . . . . . . . . . . . . . . . . Total Part Build Rating . | . . . . . . . . . . . . . . . . Parts Repaired . | . . . . . . . . . . . . . . . . Time . | . . . . . . . . . . . . . . . . Parts Recycled . | . . . . . . . . . . . . . . . . Recycled Matter . | . . . . . . . . . . . . . . . . Retrieved Matter . | . . . . . . . . . . . . . . . . Retrieved Components . | . . . . . . . . . . . . . . . . Parts Scanalyzed . | . . . . . . . . . . . . . . . . Part Schematics Acquired . | . . . . . . . . . . . . . . . . Parts Damaged . | . . . . . . . . . . . . . . . . Bothacking | -11 -10 -9 -9 -9 -7 -6 -6 -6 -6 -6 -5 -4 -3 -3 -2 ------------ Run | Jun Mat Mat Sto Rec Fac Fac Ext Cet Arc Hub Fac Fac Res Tes Res Used RIF Installer . | . . . . . . . . . . . . . . . . Robots Hacked . | . . . . . . . . . . . . . . . . Non-combat . | . . . . . . . . . . . . . . . . Combat . | . . . . . . . . . . . . . . . . Robot Hacks Applied . | . . . . . . . . . . . . . . . . Relay Couplers Released 3 | . . . . . . 3 . . . . . . . . . Machine Destruction 3 | . . . . . . 3 . . . . . . . . . Fabnet Peak Effective % . | . . . . . . . . . . . . . . . . Robots Rewired 38 | . . . . 20 . . 18 . . . . . . . . Allies Hacked 6 | . . . . 1 5 . . . . . . . . . . Hacks Repelled . | . . . . . . . . . . . . . . . . Allies | -11 -10 -9 -9 -9 -7 -6 -6 -6 -6 -6 -5 -4 -3 -3 -2 -------- Run | Jun Mat Mat Sto Rec Fac Fac Ext Cet Arc Hub Fac Fac Res Tes Res Total Allies 39 | . . . . 20 . . 19 . . . . . . . . Largest Group 18 | . . . . 18 18 . 8 5 . . . . . . . Highest-Rated Group 329 | . . . . 329 329 . 272 157 . . . . . . . Highest-Rated Ally 39 | . . . . 34 34 . 39 39 . . . . . . . Total Orders 4 | . . . . 4 . . . . . . . . . . . AID 1 | . . . . 1 . . . . . . . . . . . COLLECT 3 | . . . . 3 . . . . . . . . . . . Ally Attacks 158 | . . . . 9 8 . 110 31 . . . . . . . Total Damage 3075 | . . . . 178 213 . 2246 438 . . . . . . . Kills 23 | . . . . 3 2 . 18 . . . . . . . . Allies Corrupted . | . . . . . . . . . . . . . . . . Allies Melted . | . . . . . . . . . . . . . . . . Intel | -11 -10 -9 -9 -9 -7 -6 -6 -6 -6 -6 -5 -4 -3 -3 -2 ------- Run | Jun Mat Mat Sto Rec Fac Fac Ext Cet Arc Hub Fac Fac Res Tes Res Robot Analysis Total 1 | . . . . . . . . . . . . 1 . . . Derelict Logs Recovered . | . . . . . . . . . . . . . . . . Drone Launches . | . . . . . . . . . . . . . . . . Drone Recoveries . | . . . . . . . . . . . . . . . . Exploration | -11 -10 -9 -9 -9 -7 -6 -6 -6 -6 -6 -5 -4 -3 -3 -2 ------------- Run | Jun Mat Mat Sto Rec Fac Fac Ext Cet Arc Hub Fac Fac Res Tes Res Turns Passed 15624 | . 450 203 1260 871 2234 2953 1164 233 238 782 725 813 1282 650 1766 Spaces Moved 8519 | 1 224 158 575 444 897 1540 791 106 140 367 394 509 669 428 1276 Core 36 | . 1 . . . . . . . . . . . . . 35 Treads 2224 | . . . . . . . 341 106 140 367 394 509 101 6 260 Legs 3190 | 1 144 158 441 333 332 816 281 . . . . . 355 168 161 Wheels 921 | . 79 . 134 111 346 . . . . . . . . . 251 Hover 1672 | . . . . . 219 536 . . . . . . 213 254 450 Flight 476 | . . . . . . 188 169 . . . . . . . 119 Fastest Speed 32 | 120 100 120 120 105 158 66 39 120 120 120 140 114 95 70 32 Average Speed 118 | 120 116 120 153 120 213 103 75 120 120 161 140 129 104 105 71 Slowest Speed 270 | 120 250 120 190 134 270 168 120 120 120 184 140 140 260 158 134 Overloaded Moves . | . . . . . . . . . . . . . . . . Propulsion Burnouts . | . . . . . . . . . . . . . . . . Robots Hopped 2 | . . . . . 1 . . . . . . . . . 1 Cave-ins Triggered . | . . . . . . . . . . . . . . . . Exploration Rate (%) 39 | 1 44 21 82 68 23 39 82 56 78 36 13 13 16 34 32 Regions Visited 15 Branch Regions 7 Pre-discovered Areas . | . . . . . . . . . . . . . . . . Known Exits Taken 11 | . . 1 1 . 1 1 1 1 1 1 1 1 1 . . Unknown Exits Taken 4 | 1 1 . . 1 . . . . . . . . . 1 . Scrap Searched . | . . . . . . . . . . . . . . . . Spaces Dug 41 | . . . . . . 25 1 . . . . . . 1 14 Terrain Destroyed 645 | . . . 16 . 59 98 30 12 6 327 . . 11 2 84 Melee 41 | . . . . . . 25 1 . . . . . . 1 14 Projectile 125 | . . . . . 20 22 7 12 5 11 . . 11 1 36 AOE 478 | . . . 16 . 39 51 22 . . 316 . . . . 34 Terrain Rammed . | . . . . . . . . . . . . . . . . Walls Destroyed . | . . . . . . . . . . . . . . . . Machines Disabled . | . . . . . . . . . . . . . . . . Actions | -11 -10 -9 -9 -9 -7 -6 -6 -6 -6 -6 -5 -4 -3 -3 -2 --------- Run | Jun Mat Mat Sto Rec Fac Fac Ext Cet Arc Hub Fac Fac Res Tes Res Total 12684 | . 345 171 836 720 1119 2692 1291 162 179 489 499 611 1120 571 1879 Wait 2345 | . 38 2 128 20 108 916 207 21 21 78 61 58 283 79 325 Move 8500 | . 223 157 574 443 894 1539 790 105 139 366 393 508 668 427 1274 Hop 2 | . . . . . 1 . . . . . . . . . 1 Pick Up 140 | . 9 4 13 4 23 22 9 1 1 4 5 6 17 3 19 Fast Attach 70 | . 7 1 11 7 6 2 1 . . . 1 . 5 5 24 Attach 84 | . 1 2 2 1 5 9 3 . . 3 3 2 17 9 27 Detach 65 | . 2 1 . 2 6 8 3 1 . . . . 6 13 23 Swap 129 | . 6 . 10 2 7 35 12 5 2 1 1 3 10 1 34 Drop 154 | . 13 3 25 11 13 22 12 3 1 2 1 5 12 3 28 Fire 698 | . 46 1 62 30 53 98 43 26 15 34 34 29 97 25 105 Melee 59 | . . . . . . 27 4 . . . . . 3 6 19 Ram 7 | . . . . 4 2 1 . . . . . . . . . Kick 10 | . . . 2 6 1 . . . . . . . 1 . . Crush 1 | . . . . . . . . . . 1 . . . . . Escape Stasis 41 | . . . 9 . . 13 18 . . . . . 1 . . Rewire 379 | . . . . 190 . . 189 . . . . . . . . Trap . | . . . . . . . . . . . . . . . . Miscellaneous . | . . . . . . . . . . . . . . . . Route ------- -11/Junkyard -10/Materials (discovered 2 exits: *Mat / [*Min]) -9/Materials (discovered 3 exits: Min x2 / *Sto) -9/Storage -9/Recycling -7/Factory -6/Factory -6/Extension (discovered 3 exits: *Fac x2 / *Cet) -6/Cetus -6/Archives (discovered 2 exits: *Fac / *Hub) -6/Hub_04(d) -5/Factory (discovered 2 exits: *Fac / *Upp) -4/Factory -3/Research (discovered 2 exits: *Tes x2) -3/Testing -2/Research History --------- Turn | Location | Event 1 | -11/Junkyard | Discovered new exit (range 0) 1 | -11/Junkyard | Entered Materials 348 | -10/Materials | Discovered new exit (range 14) 390 | -10/Materials | Discovered new exit (range 15) 451 | -10/Materials | Entered another Materials area 451 | -9/Materials | Evolved 2 slots: Propulsion x1, Weapon x1 548 | -9/Materials | Identified exit to Mines 548 | -9/Materials | Identified exit to Storage 654 | -9/Materials | Entered Storage 985 | -9/Storage | Destroyed 7 combat bots 1122 | -9/Storage | Identified exit to Recycling 1345 | -9/Storage | Build established: Gunner 1909 | -9/Storage | Used back door to open Recycling access 1914 | -9/Storage | Entered Recycling 1915 | -9/Recycling | Found Scrap Engine 2038 | -9/Recycling | P-60 Hacker assimilated allied Rogue 2a 2042 | -9/Recycling | Core integrity fell below 50% 2096 | -9/Recycling | Lost 3 parts (1p2n) 2758 | -9/Recycling | Discovered new exit (range 9) 2785 | -9/Recycling | Entered Factory 2785 | -7/Factory | Accompanied by 18 allies 2785 | -7/Factory | Evolved 4 slots: Propulsion x1, Utility x3 3093 | -7/Factory | Build established: Commander-Gunner 4226 | -7/Factory | Build established: Commander-Construct 4748 | -7/Factory | Build established: Construct 4784 | -7/Factory | Discovered new exit (range 16) 5018 | -7/Factory | Identified exit to Factory 5019 | -7/Factory | Entered another Factory area 5019 | -6/Factory | Evolved 2 slots: Utility x2 6172 | -6/Factory | Garrison activated, responded to threat 6193 | -6/Factory | Lost 3 parts (1u2w) 7200 | -6/Factory | Destroyed 7 combat bots 7214 | -6/Factory | Spotted B-75 Beast 7469 | -6/Factory | First assault squad dispatched 7969 | -6/Factory | Discovered new exit (range 6) 7971 | -6/Factory | Identified exit to Extension 7972 | -6/Factory | Entered Extension 8047 | -6/Extension | Rescued a captive Derelict 8136 | -6/Extension | Energy Cycler disabled 8136 | -6/Extension | Rescued a captive Derelict 8136 | -6/Extension | Rescued a captive Derelict 8136 | -6/Extension | Rescued a captive Derelict 8139 | -6/Extension | Rescued a captive Derelict 8139 | -6/Extension | Rescued a captive Derelict 8142 | -6/Extension | Rescued a captive Derelict 8143 | -6/Extension | Rescued a captive Derelict 8143 | -6/Extension | Rescued a captive Derelict 8145 | -6/Extension | Rescued a captive Derelict 8145 | -6/Extension | Rescued a captive Derelict 8147 | -6/Extension | Rescued a captive Derelict 8572 | -6/Extension | Spotted B-75 Beast 8604 | -6/Extension | Destroyed B-75 Beast 8608 | -6/Extension | Discovered new exit (range 15) 8608 | -6/Extension | Spotted B-75 Beast 8627 | -6/Extension | Destroyed B-75 Beast 8672 | -6/Extension | Disrupted transfer network 8893 | -6/Extension | Extracted ID and sensor layout for unrecognized location from A7's data core 9022 | -6/Extension | First assault squad dispatched 9095 | -6/Extension | Discovered new exit (range 10) 9096 | -6/Extension | Discovered new exit (range 6) 9118 | -6/Extension | Identified exit to Factory 9128 | -6/Extension | Identified exit to Cetus 9136 | -6/Extension | Entered Cetus 9136 | -6/Cetus | Accompanied by 5 allies 9153 | -6/Cetus | Spotted Cetus Guard 9153 | -6/Cetus | Spotted Cetus Guard 9155 | -6/Cetus | Spotted Cetus Guard 9156 | -6/Cetus | Destroyed Cetus Guard 9159 | -6/Cetus | Destroyed Cetus Guard 9177 | -6/Cetus | Destroyed Cetus Guard 9181 | -6/Cetus | Spotted Cetus Guard 9196 | -6/Cetus | Destroyed Cetus Guard 9312 | -6/Cetus | Core integrity fell below 50% 9345 | -6/Cetus | Destroyed 10 combat bots 9350 | -6/Cetus | Discovered new exit (range 16) 9367 | -6/Cetus | Identified exit to Archives 9369 | -6/Cetus | Entered Archives 9467 | -6/Archives | Discovered new exit (range 15) 9481 | -6/Archives | Discovered exit to Factory (range 16) 9603 | -6/Archives | Identified exit to Hub_04(d) 9607 | -6/Archives | Entered Hub_04(d) 10082 | -6/Hub_04(d) | Discovered exit to Factory (range 6) 10315 | -6/Hub_04(d) | Network Hub disabled 10315 | -6/Hub_04(d) | Network Hub disabled 10389 | -6/Hub_04(d) | Entered Factory 10389 | -5/Factory | Evolved 2 slots: Utility x2 10689 | -5/Factory | First assault squad dispatched 10772 | -5/Factory | Discovered new exit (range 6) 10803 | -5/Factory | Identified exit to Upper Caves 10819 | -5/Factory | System corruption reached 10% 11004 | -5/Factory | Discovered new exit (range 13) 11041 | -5/Factory | Identified exit to Factory 11114 | -5/Factory | Entered another Factory area 11114 | -4/Factory | Evolved 2 slots: Utility x2 11163 | -4/Factory | Discovered new exit (range 16) 11185 | -4/Factory | Identified exit to Research 11927 | -4/Factory | Entered Research 11927 | -3/Research | Evolved 2 slots: Utility x2 12050 | -3/Research | Spotted B-86 Titan 12107 | -3/Research | Lost 3 parts (1p1u1w) 12148 | -3/Research | Destroyed B-86 Titan 12343 | -3/Research | Identified exit to Testing 12388 | -3/Research | Build established: Gunner 12696 | -3/Research | Build established: Construct 12964 | -3/Research | Lost 8 parts (1p1n3u3w) 13055 | -3/Research | Lost 3 parts (1n2u) 13204 | -3/Research | Lost 3 parts (3u) 13209 | -3/Research | Entered Testing 13477 | -3/Testing | Found Prototype Device 13477 | -3/Testing | Identified Exp. Shield Generator 13799 | -3/Testing | Discovered new exit (range 6) 13859 | -3/Testing | Entered Research 13859 | -2/Research | Evolved 2 slots: Power x1, Weapon x1 14044 | -2/Research | Build established: Mutant 14234 | -2/Research | Spotted B-90 Cyclops 14609 | -2/Research | First assault squad dispatched 14792 | -2/Research | Destroyed 8 combat bots 15180 | -2/Research | System corruption reached 10% 15312 | -2/Research | Lost 5 parts (1p2u2w) 15314 | -2/Research | Build established: Scavenger-Mutant 15477 | -2/Research | Garrison activated, responded to threat 15534 | -2/Research | Core integrity fell below 50% 15542 | -2/Research | Released all parts (8) 15550 | -2/Research | Core integrity fell below 20% 15573 | -2/Research | Lost 19 parts (1p3n8u7w) 15608 | -2/Research | Found Enh. Force Lance 15625 | -2/Research | Destroyed by G-73 Enforcer with Phase Gun Last Messages --------------- 15547_ Penetrated by Slug. 15561_ Acquired Field Propulsion Array. 15565_ System corrupted: Heat flow error (+144). 15577_ Hyp. Railgun destroyed. 15590_ Acquired Lgt. Quantum Reactor. 15593_ G=YUCEL0%OIGM/HYA=T0ADD3BZY 15594_ Acquired 106 matter. 15597_ Acquired Enh. Nova Cannon. 15603_ Acquired Biometal Leg. 15608_ Dropped Terrain Scanner. 15608_ Acquired Enh. Force Lance. 15609_ ALERT: Rogue bot located, Programmers report to Research Zone 5U. 15619_ Dropped Biometal Leg. 15619_ Acquired Prototype Flight Unit. 15619_ Identified Imp. Diametric Drive. 15621_ Slug penetrates Wall. 15621_ Acquired Imp. Diametric Drive. 15623_ Dropped Field Propulsion Array. 15623_ Acquired Field Propulsion Array. 15625_ System corrupted: Matter fused (-7). Map ----- +----------------------------------------------------+ | | | ?????????????????????????????????????????????????? | | ?????????????????????????????????????????????????? | | ?????????????????????????????????????????????????? | | ?????????????????????????????????????????????????? | | ?????????????????????????????????????????????????? | | ?????????????????????????????????????????????????? | | ?????????????????????????????????????????????????? | | ?????????????????????????????????????????????????? | | ???????????????????????##########????????????????? | | ????????????????######## #????????????????? | | #############???# # #????????????????? | | #???# # #????????????????? | | #???# # #????????????????? | | #???# + #????????????????? | | = #???# # ! #????????????????? | | #???# # #????????????????? | | ####### ### #????????????????? | | # # #?# ! #????????????????? | | # / #?##########????????????????? | | # # ########????????????????????? | | # # # #????????????????????? | | # # #= / #????????????????????? | | # # # = #????????????????????? | | ######+###### # lg ! #????????????????????? | | ???# + # # !@ #????????????????????? | | ???# ##### # # != #????????????????????? | | ???# #???# # ########????????????????????? | | ? #???# # #???????????????????????????? | | #### #???# # #???????????????????????????? | | ???# #???####### #???????????????????????????? | | ???# #?????????# #???????????????????????????? | | ???# ????????? ????????????????????????????? | | ???# ????????? ????????????????????????????? | | ???# ????????? ????????????????????????????? | | ???# ????????? ????????????????????????????? | | ???####+#????????? ????????????????????????????? | | ?????????????????? ????????????????????????????? | | ?????????????????? ????????????????????????????? | | ?????????????????????????????????????????????????? | | ?????????????????????????????????????????????????? | | ?????????????????????????????????????????????????? | | ?????????????????????????????????????????????????? | | ?????????????????????????????????????????????????? | | ?????????????????????????????????????????????????? | | ?????????????????????????????????????????????????? | | ?????????????????????????????????????????????????? | | ?????????????????????????????????????????????????? | | ?????????????????????????????????????????????????? | | ?????????????????????????????????????????????????? | +----------------------------------------------------+ Best States ------------- Heat Dissipation 103 Energy Generation 53 Energy Capacity 570 Matter Stores 300 Matter Capacity 300 Sight Range 22 Robot Scan Range 18 Terrain Scan Range 14 Terrain Scan Density 85 Jamming Range 16 Power Amplification 30 Additional Mass Support 9 Base Temperature (-) 200 Corruption Block 8 Armor Coverage 450 Propulsion Shielding 33 Phase Shifting 15 Evasion (%) 69 Targeting Accuracy 16 Target Analysis 11 Recoil Reduction 4 Particle Charging 20 Kinecelleration 30 Item Schematics ----------------- None Robot Schematics ------------------ None Fabricated ------------ Nothing Alien Tech Used ----------------- None Achievements -------------- Knowing Is Half The Battle Pyromaniac Challenges ------------ None Game ------ Seed CommSingularityCloak Manual? 0 Play Time 03:53:16 Cumulative 87.1 hours Start 2023.10.04 @ 20:26:11 End 2023.10.05 @ 22:07:33 Sessions 5 Manual Loads 0 Difficulty Rogue Special Mode None Game No. 51 Rogue 51 Adventurer 0 Explorer 0 Win Type - Total 0 Types 0/0/0/0/0/0/0/0/0 Lore% 23 Gallery% 49 Achievement% 42 Wizard Run 0 Options --------- ASCII 0 Keyboard 1 Movement Numpad Keybinds 0 Fullscreen 1 Font 24/Smallcaps Map View 76x50 Tactical HUD 1 Map Filters NONE Filters NONE Steam 1 RUN: 3128d883-c323-47bd-bbd3-23402368e223